Service area,Service sub division,TVBC Service,Expense type,Detailed expense type,TVBC account code,Date Paid,Transaction Reference,Nett Value,Supplier Name
Central Services to the Public,Management & Support Services,Estates and Economic Development ,Premises related Expenditure,Energy Costs,Gas,28/07/2016,188247,-962.4,Total Gas & Power Ltd
Planning & Development,Economic Development,Estates and Economic Development ,Premises related Expenditure,Repairs Alterations & Maintenance of Buildings,General Maintenance Costs,27/07/2016,188805,-748.8,Basepoint Centres Ltd
Central Services,Corporate & Democratic Core,Corporate & Democratic,Supplies & Services,Miscellaneous Expenses,Advertising,14/07/2016,185447,-609,Hampshire County Council
Cultural & Related,Recreation & Sport,Estates and Economic Development ,Premises related Expenditure,Water Services,Water And Sewerage Charges,07/07/2016,184468,-623.28,Southern Water
Planning & Development,Economic Development,Estates and Economic Development ,Supplies & Services,Grants & Subscriptions,Grants,20/07/2016,188107,500,Chalkcroft Wealth Management Ltd
Planning & Development,Economic Development,Estates and Economic Development ,Supplies & Services,Grants & Subscriptions,Grants,06/07/2016,187038,500,Captains Mezze
Planning & Development,Economic Development,Estates and Economic Development ,Supplies & Services,Grants & Subscriptions,Grants,27/07/2016,188792,500,Romsey Bridal Boutique Ltd
Housing Services,Homelessness,Housing and Environmental Health ,Supplies & Services,Services,Legal Fees,21/07/2016,187520,500,Cornerstone Barristers
Central Services to the Public,Management & Support Services,Estates and Economic Development ,Premises related Expenditure,Energy Costs,Electricity,07/07/2016,186938,423,Southern Electric
Environmental & Regulatory,Waste management,Environmental,Employees,Indirect Employee Expenses,Agency Staff - Waged Posts,14/07/2016,187461,426.24,The Works Staffing Solutions Ltd
Cultural & Related,Open Spaces,Environmental,Transport Related Expenditure,Direct Transport Costs,Petrol,14/07/2016,187438,428.51,Fuel Card Services Ltd
Central Services to the Public,Local Tax Collection,Revenues,Supplies & Services,"Printing, Stationery & General Office Expenses",External Printing,21/07/2016,187926,429,Hound Envelopes Limited
Central Services to the Public,Management & Support Services,Revenues,Employees,Indirect Employee Expenses,Temporary Staff,07/07/2016,187152,429.44,Personnel Selection
Central Services to the Public,Management & Support Services,Revenues,Supplies & Services,"Printing, Stationery & General Office Expenses",Stationery,28/07/2016,188532,430.92,Ricoh Uk Ltd
Cultural & Related,Open Spaces,Environmental,Supplies & Services,Communications & Computing,Mobile Telephone Charges,28/07/2016,188605,144.5,Vodafone Limited
Environmental & Regulatory,Street Cleansing (not chargeable to Highways),Environmental,Supplies & Services,Communications & Computing,Mobile Telephone Charges,28/07/2016,188605,152.15,Vodafone Limited
Environmental & Regulatory,Waste management,Environmental,Supplies & Services,Communications & Computing,Mobile Telephone Charges,28/07/2016,188605,90.22,Vodafone Limited
Central Services to the Public,Management & Support Services,Environmental,Supplies & Services,Communications & Computing,Mobile Telephone Charges,28/07/2016,188605,27.02,Vodafone Limited
Central Services to the Public,Management & Support Services,Environmental,Supplies & Services,Communications & Computing,Mobile Telephone Charges,28/07/2016,188605,29.85,Vodafone Limited
Central Services to the Public,Management & Support Services,Estates and Economic Development ,Supplies & Services,Miscellaneous Expenses,Waste Collection,21/07/2016,187694,315.6,Suez Recycling And Recovery Uk Ltd
Environmental & Regulatory,Regulatory Services,Estates and Economic Development ,Supplies & Services,Miscellaneous Expenses,Waste Collection,21/07/2016,187694,132.59,Suez Recycling And Recovery Uk Ltd
Environmental & Regulatory,Street Cleansing (not chargeable to Highways),Environmental,Premises related Expenditure,Rents,Rents,06/07/2016,186926,539.52,Aster Communities
Environmental & Regulatory,Street Cleansing (not chargeable to Highways),Environmental,Premises related Expenditure,Rents,Rents,06/07/2016,186927,539.52,Aster Communities
Central Services,Corporate & Democratic Core,Corporate & Democratic,Transport Related Expenditure,Contract Hire and Operating Leases,Vehicles-Hired\Leased,14/07/2016,187216,540,Let Me Drive You
Environmental & Regulatory,Waste management,Environmental,Transport Related Expenditure,Direct Transport Costs,External Garages,21/07/2016,187575,455,Terberg Matec Uk Limited
Central Services to the Public,Management & Support Services,Environmental,Transport Related Expenditure,Direct Transport Costs,Repair Materials,28/07/2016,188567,456,Dennis Eagle Ltd
Central Services to the Public,Management & Support Services,Estates and Economic Development ,Transport Related Expenditure,Direct Transport Costs,Petrol,28/07/2016,188286,9.69,Fuel Card Services Ltd
Cultural & Related,Open Spaces,Environmental,Transport Related Expenditure,Direct Transport Costs,Petrol,28/07/2016,188286,446.45,Fuel Card Services Ltd
Housing Services,"Housing strategy, advice and enabling",Housing and Environmental Health ,Supplies & Services,Communications & Computing,Computer Hardware,14/07/2016,187076,457.74,Abritas Ltd
Central Services to the Public,Management & Support Services,Estates and Economic Development ,Third Party Payments,Other Establishments,Private Contractors,14/07/2016,187602,465,Waterside Blinds
Central Services to the Public,Management & Support Services,Revenues,Employees,Indirect Employee Expenses,Temporary Staff,14/07/2016,187210,467.68,Personnel Selection
Cultural & Related,Recreation & Sport,Community and Leisure ,Premises related Expenditure,Grounds Maintenance Costs,Gm - Additional Works,28/07/2016,188220,468,Personal data - Data Protection Act 1998
External Trading Accounts,Business Parks,Estates and Economic Development ,Premises related Expenditure,Grounds Maintenance Costs,Grounds Maintenance Contracts,28/07/2016,188594,473.19,Landmarks Sustainability Ltd
Housing Services,"Housing strategy, advice and enabling",Housing and Environmental Health ,Supplies & Services,Communications & Computing,Computer Hardware,14/07/2016,187081,473.94,Abritas Ltd
Planning & Development,Economic Development,Estates and Economic Development ,Supplies & Services,Services,Training Courses,21/07/2016,188122,570,R&B Industrial Ltd
Cultural & Related,Open Spaces,Environmental,Supplies & Services,"Equipment, Furniture & Materials",Purchase Equip + Materials,07/07/2016,184343,475,Groundsman Tools & Supplies Llp
Environmental & Regulatory,Regulatory Services,Estates and Economic Development ,Supplies & Services,"Equipment, Furniture & Materials",Purchase Equip + Materials,28/07/2016,188975,482.1,Cjs Portsmouth Ltd
Central Services to the Public,Management & Support Services,Estates and Economic Development ,Third Party Payments,Other Establishments,Private Contractors,28/07/2016,188923,483.44,Kone Plc
Cultural & Related,Open Spaces,Environmental,Supplies & Services,"Equipment, Furniture & Materials",Purchases for playgrounds,07/07/2016,186902,489,Gb Sport & Leisure Uk Ltd
Environmental & Regulatory,Regulatory Services,Housing and Environmental Health ,Supplies & Services,Grants and subscriptions,Capital Grants,07/07/2016,187193,590,Epw Construction
Cultural & Related,Recreation & Sport,Estates and Economic Development ,Premises related Expenditure,Water Services,Water And Sewerage Charges,07/07/2016,186975,596.84,Southern Water
Environmental & Regulatory,Street Cleansing (not chargeable to Highways),Environmental,Transport Related Expenditure,Direct Transport Costs,External Garages,06/07/2016,186417,500,Bodyshop24
Environmental & Regulatory,Waste management,Environmental,Supplies & Services,"Printing, Stationery & General Office Expenses",External Printing,14/07/2016,187606,500,Vernham Labels Ltd
Cultural & Related,Culture & Heritage,Community and Leisure ,Supplies & Services,Services,Professional Fees,21/07/2016,187718,600,Personal data - Data Protection Act 1998
Cultural & Related,Open Spaces,Environmental,Third Party Payments,Other Establishments,Private Contractors,14/07/2016,187246,604.12,Ivan Gibson Agricultural Contractor
Central Services to the Public,Management & Support Services,Estates and Economic Development ,Third Party Payments,Other Establishments,Private Contractors,28/07/2016,188924,507.06,Kone Plc
Planning & Development,Community Development,Community and Leisure ,Supplies & Services,Grants & Subscriptions,Grants,14/07/2016,187671,613.2,West Tytherley & Frenchmoor Pc
Cultural & Related,Open Spaces,Environmental,Transport Related Expenditure,Direct Transport Costs,Repair Materials,07/07/2016,186659,511.52,T H White Ltd
Central Services to the Public,Management & Support Services,IT,Supplies & Services,"Printing, Stationery & General Office Expenses",Stationery,07/07/2016,186944,341.09,Bannergroup Ltd
Central Services,Corporate & Democratic Core,Corporate & Democratic,Supplies & Services,"Printing, Stationery & General Office Expenses",Postage Costs,07/07/2016,186944,173.18,Bannergroup Ltd
Cultural & Related,Open Spaces,Environmental,Transport Related Expenditure,Direct Transport Costs,Repair Materials,21/07/2016,187505,5,Kgm Ltd
Central Services to the Public,Management & Support Services,Environmental,Transport Related Expenditure,Direct Transport Costs,Repair Materials,21/07/2016,187505,518.32,Kgm Ltd
External Trading Accounts,Business Parks,Estates and Economic Development ,Supplies & Services,Communications & Computing,Land Line Telephone Charges,07/07/2016,186967,28.7,Virgin Media Payments Ltd
Cultural & Related,Culture & Heritage,Estates and Economic Development ,Supplies & Services,Communications & Computing,Land Line Telephone Charges,07/07/2016,186967,39.83,Virgin Media Payments Ltd
Cultural & Related,Culture & Heritage,Estates and Economic Development ,Supplies & Services,Communications & Computing,Land Line Telephone Charges,07/07/2016,186967,39.03,Virgin Media Payments Ltd
Central Services to the Public,Management & Support Services,IT,Supplies & Services,Communications & Computing,Communication Links,07/07/2016,186967,26,Virgin Media Payments Ltd
Central Services to the Public,Management & Support Services,IT,Supplies & Services,Communications & Computing,Communication Links,07/07/2016,186967,67,Virgin Media Payments Ltd
Cultural & Related,Recreation & Sport,Community and Leisure ,Supplies & Services,Communications & Computing,Land Line Telephone Charges,07/07/2016,186967,26,Virgin Media Payments Ltd
Cultural & Related,Recreation & Sport,Community and Leisure ,Supplies & Services,Communications & Computing,Land Line Telephone Charges,07/07/2016,186967,13.18,Virgin Media Payments Ltd
Cultural & Related,Recreation & Sport,Community and Leisure ,Supplies & Services,Communications & Computing,Land Line Telephone Charges,07/07/2016,186967,13,Virgin Media Payments Ltd
Cultural & Related,Culture & Heritage,Community and Leisure ,Supplies & Services,Communications & Computing,Communication Links,07/07/2016,186967,74.45,Virgin Media Payments Ltd
"Highways, Roads & Transport",Parking Services,Plan Pol & Transport,Supplies & Services,Communications & Computing,Alarm Lines,07/07/2016,186967,37.02,Virgin Media Payments Ltd
Central Services to the Public,Management & Support Services,Environmental,Supplies & Services,Communications & Computing,Land Line Telephone Charges,07/07/2016,186967,70.21,Virgin Media Payments Ltd
Central Services to the Public,Emergency Planning,Corporate & Democratic,Supplies & Services,Communications & Computing,Land Line Telephone Charges,07/07/2016,186967,91,Virgin Media Payments Ltd
"Highways, Roads & Transport",Highways and roads - maintenance,Plan Pol & Transport,Supplies & Services,"Printing, Stationery & General Office Expenses",Photocopying Costs,07/07/2016,186950,549.43,Ricoh Uk Ltd
Planning & Development,Building Control,Planning & Building,Supplies & Services,"Printing, Stationery & General Office Expenses",Photocopying Costs,07/07/2016,186951,549.53,Ricoh Uk Ltd
External Trading Accounts,Business Parks,Estates and Economic Development ,Supplies & Services,Miscellaneous Expenses,Waste Collection,07/07/2016,187075,553.8,Basingstoke Skip Hire & Sthrn Waste Mgt Ltd
Central Services to the Public,Management & Support Services,Estates and Economic Development ,Premises related Expenditure,Repairs Alterations & Maintenance of Buildings,Planned Maintenance - Non Est,28/07/2016,188490,566.24,Btu Installation & Maintenance Ltd
Central Services to the Public,Management & Support Services,Estates and Economic Development ,Third Party Payments,Other Establishments,Private Contractors,21/07/2016,187579,566.67,Btu Installation & Maintenance Ltd
"Highways, Roads & Transport",Parking Services,Plan Pol & Transport,Supplies & Services,"Clothes, Uniforms & Laundry",Clothing + Uniforms,21/07/2016,187630,573.45,Keltic
Environmental & Regulatory,Waste management,Environmental,Employees,Indirect Employee Expenses,Agency Staff - Waged Posts,14/07/2016,187464,575.44,Employment Partners Ltd
Planning & Development,Economic Development,Estates and Economic Development ,Supplies & Services,Services,Training Courses,21/07/2016,187890,700,Puma Products Ltd
Central Services to the Public,Local Tax Collection,Revenues,Supplies & Services,"Equipment, Furniture & Materials",Equipment Lease Rentals,07/07/2016,186917,59,Ricoh Uk Ltd
Central Services to the Public,Local Tax Collection,Revenues,Supplies & Services,"Equipment, Furniture & Materials",Equipment Lease Rentals,07/07/2016,186917,177,Ricoh Uk Ltd
Housing Services,Housing Benefits ,Revenues,Supplies & Services,"Equipment, Furniture & Materials",Equipment Lease Rentals,07/07/2016,186917,177,Ricoh Uk Ltd
Central Services to the Public,Local Tax Collection,Revenues,Supplies & Services,"Equipment, Furniture & Materials",Equipment Lease Rentals,07/07/2016,186917,177,Ricoh Uk Ltd
Cultural & Related,Culture & Heritage,Community and Leisure ,Supplies & Services,Services,Project Consultancy - Policy,28/07/2016,188504,595,Purbeck Civil Engineering Limited
Cultural & Related,Culture & Heritage,Community and Leisure ,Supplies & Services,Catering,Non-Contract Catering,21/07/2016,187687,597.57,Carlsberg Uk Ltd
Planning & Development,Development Control,Planning & Building,Supplies & Services,Services,Project Consultancy - Policy,28/07/2016,188215,600,Personal data - Data Protection Act 1998
Planning & Development,Planning Policy,Plan Pol & Transport,Supplies & Services,Communications & Computing,Software Maintenance,14/07/2016,186173,600,Lovell Johns Ltd
Environmental & Regulatory,"Cemetery, Cremation and Mortuary Services",Community and Leisure ,Premises related Expenditure,Grounds Maintenance Costs,Gm - Additional Works,07/07/2016,187188,725.4,St Peters Church
Central Services to the Public,Management & Support Services,Estates and Economic Development ,Premises related Expenditure,Repairs Alterations & Maintenance of Buildings,Planned Maintenance - Non Est,28/07/2016,187484,604.67,Zip Heaters (Uk) Ltd
Cultural & Related,Open Spaces,Community and Leisure ,Premises related Expenditure,Grounds Maintenance Costs,Gm - Additional Works,21/07/2016,187902,618.14,Travis Perkins Trading Co Ltd
Central Services to the Public,Elections,Legal & Democratic,Supplies & Services,"Printing, Stationery & General Office Expenses",Photocopying Costs,28/07/2016,187923,624.51,Ricoh Uk Ltd
Central Services to the Public,Local Tax Collection,Revenues,Supplies & Services,Services,External Training Consultants,20/07/2016,187524,625,Airey Consultancy Services Ltd
Planning & Development,Community Development,Estates and Economic Development ,Supplies & Services,Miscellaneous Expenses,Photography Fees,21/07/2016,188280,750,Personal data - Data Protection Act 1998
Central Services to the Public,Management & Support Services,Legal & Democratic,Supplies & Services,Services,Legal Fees,28/07/2016,187714,625.46,Local Government Association
Environmental & Regulatory,Waste management,Environmental,Employees,Indirect Employee Expenses,Agency Staff - Waged Posts,07/07/2016,185435,637.38,Gi Group Recruitment Ltd
Planning & Development,Development Control,Planning & Building,Supplies & Services,Miscellaneous Expenses,Health And Safety,14/07/2016,186914,640,Hands Free Computing Ltd
Central Services to the Public,Management & Support Services,Housing and Environmental Health ,Supplies & Services,"Printing, Stationery & General Office Expenses",Photocopying Costs,07/07/2016,186953,647.67,Ricoh Uk Ltd
Cultural & Related,Culture & Heritage,Community and Leisure ,Supplies & Services,Catering,Non-Contract Catering,14/07/2016,187092,659.17,Carlsberg Uk Ltd
Central Services to the Public,Management & Support Services,Housing and Environmental Health ,Supplies & Services,Services,Training Courses,07/07/2016,186919,660,Town & Country Planning Association
Central Services to the Public,Management & Support Services,Finance,Supplies & Services,"Printing, Stationery & General Office Expenses",Postage Costs,28/07/2016,188552,661.26,Whistl Uk Ltd
Environmental & Regulatory,Regulatory Services,Housing and Environmental Health ,Supplies & Services,Services,Legal Fees,21/07/2016,187519,800,Cornerstone Barristers
Central Services to the Public,Management & Support Services,Finance,Supplies & Services,"Printing, Stationery & General Office Expenses",Postage Costs,14/07/2016,187516,671.2,Whistl Uk Ltd
Cultural & Related,Culture & Heritage,Estates and Economic Development ,Premises related Expenditure,Water Services,Water And Sewerage Charges,07/07/2016,187069,821.43,Southern Water
Central Services to the Public,Management & Support Services,Legal & Democratic,Supplies & Services,"Printing, Stationery & General Office Expenses",Photocopying Costs,28/07/2016,187922,689.3,Ricoh Uk Ltd
Central Services to the Public,Management & Support Services,Estates and Economic Development ,Supplies & Services,Miscellaneous Expenses,Health And Safety,28/07/2016,180484,446.73,Invicta Lifeline Ltd
Cultural & Related,Open Spaces,Environmental,Supplies & Services,Miscellaneous Expenses,Health And Safety,28/07/2016,180484,255.27,Invicta Lifeline Ltd
Central Services to the Public,Management & Support Services,Environmental,Transport Related Expenditure,Direct Transport Costs,Repair Materials,21/07/2016,187906,713.34,Dennis Eagle Ltd
Central Services to the Public,Local Land Charges,Legal & Democratic,Supplies & Services,"Printing, Stationery & General Office Expenses",Stationery,07/07/2016,184811,176.12,Bannergroup Ltd
Central Services to the Public,Elections,Legal & Democratic,Supplies & Services,"Printing, Stationery & General Office Expenses",Stationery,07/07/2016,184811,542.87,Bannergroup Ltd
Environmental & Regulatory,Waste management,Environmental,Transport Related Expenditure,Direct Transport Costs,Repair Materials,28/07/2016,187941,719.31,Dennis Eagle Ltd
Central Services to the Public,Management & Support Services,IT,Supplies & Services,Communications & Computing,Hardware Maintenance,21/07/2016,187936,740.62,Quadrant Security Group Ltd
Central Services to the Public,Management & Support Services,Finance,Supplies & Services,"Printing, Stationery & General Office Expenses",Postage Costs,07/07/2016,186671,747.11,Whistl Uk Ltd
Central Services to the Public,Management & Support Services,IT,Supplies & Services,Communications & Computing,Land Line Telephone Charges,14/07/2016,187587,749.64,Virgin Media Payments Ltd
Central Services,Corporate & Democratic Core,Corporate & Democratic,Supplies & Services,Services,Professional Advice,14/07/2016,187444,750,Dc Commerical Solicitors
Planning & Development,Planning Policy,Plan Pol & Transport,Supplies & Services,"Printing, Stationery & General Office Expenses",Stationery,07/07/2016,186943,230.2,Bannergroup Ltd
"Highways, Roads & Transport",Highways and roads - maintenance,Plan Pol & Transport,Supplies & Services,"Printing, Stationery & General Office Expenses",Stationery,07/07/2016,186943,191.84,Bannergroup Ltd
"Highways, Roads & Transport",Parking Services,Plan Pol & Transport,Supplies & Services,"Printing, Stationery & General Office Expenses",Stationery,07/07/2016,186943,76.75,Bannergroup Ltd
"Highways, Roads & Transport",Parking Services,Plan Pol & Transport,Supplies & Services,"Printing, Stationery & General Office Expenses",Stationery,07/07/2016,186943,268.57,Bannergroup Ltd
Central Services to the Public,Management & Support Services,Estates and Economic Development ,Supplies & Services,Services,Training Courses,28/07/2016,188501,793,Safe Drain Technologies Ltd
Cultural & Related,Culture & Heritage,Community and Leisure ,Supplies & Services,Miscellaneous Expenses,Booking Of Acts,14/07/2016,187431,800,Oddsocks Communications Ltd
Environmental & Regulatory,"Cemetery, Cremation and Mortuary Services",Community and Leisure ,Premises related Expenditure,Repairs Alterations & Maintenance of Buildings,Estates premises costs - AMP,28/07/2016,188496,814.8,Hall & Ensom Ltd
Central Services to the Public,Management & Support Services,Estates and Economic Development ,Third Party Payments,Other Establishments,Contract Catering,28/07/2016,188913,816.46,Edwards And Ward Ltd
Central Services to the Public,Management & Support Services,IT,Employees,Indirect Employee Expenses,Temporary Staff,14/07/2016,184802,825,Gcs Recruitment Services
Central Services to the Public,Management & Support Services,IT,Employees,Indirect Employee Expenses,Temporary Staff,21/07/2016,187894,825,Gcs Recruitment Services
Planning & Development,Development Control,Planning & Building,Supplies & Services,Miscellaneous Expenses,Planning Appeal Costs,21/07/2016,187215,1000,Cornerstone Barristers
Central Services to the Public,Management & Support Services,Chief Executive's,Supplies & Services,Services,Project Consultancy - Policy,14/07/2016,187674,1000,Andover Town Council
Planning & Development,Community Development,Community and Leisure ,Supplies & Services,Grants & Subscriptions,Grants,20/07/2016,188114,1000,Portway Junior School
Cultural & Related,Culture & Heritage,Community and Leisure ,Supplies & Services,Services,Project Consultancy - Policy,28/07/2016,188538,1000,Greene Shoots
"Highways, Roads & Transport",Public Transport,Plan Pol & Transport,Third Party Payments,Transport Operators in Respect of Concessionary Fares,Voluntary Orgs Reimbursement,21/07/2016,188273,1001.5,Romsey Good Neighbours
Central Services to the Public,Management & Support Services,Legal & Democratic,Employees,Indirect Employee Expenses,Agency Staff - Waged Posts,14/07/2016,186962,840,Venn Group Ltd
Central Services to the Public,Management & Support Services,Estates and Economic Development ,Supplies & Services,Communications & Computing,Telephone Tracking System,14/07/2016,187531,60,Ctrack Uk Limited
Environmental & Regulatory,Regulatory Services,Estates and Economic Development ,Supplies & Services,Communications & Computing,Telephone Tracking System,14/07/2016,187531,20,Ctrack Uk Limited
Cultural & Related,Open Spaces,Environmental,Supplies & Services,Communications & Computing,Telephone Tracking System,14/07/2016,187531,280,Ctrack Uk Limited
Environmental & Regulatory,Street Cleansing (not chargeable to Highways),Environmental,Supplies & Services,Communications & Computing,Telephone Tracking System,14/07/2016,187531,230,Ctrack Uk Limited
Environmental & Regulatory,Waste management,Environmental,Supplies & Services,Communications & Computing,Telephone Tracking System,14/07/2016,187531,210,Ctrack Uk Limited
Environmental & Regulatory,Waste management,Environmental,Supplies & Services,Communications & Computing,Telephone Tracking System,14/07/2016,187531,20,Ctrack Uk Limited
Central Services to the Public,Management & Support Services,Environmental,Supplies & Services,Communications & Computing,Telephone Tracking System,14/07/2016,187531,30,Ctrack Uk Limited
Environmental & Regulatory,Regulatory Services,Housing and Environmental Health ,Supplies & Services,Miscellaneous Expenses,Kennel fees,21/07/2016,187907,860,Anton Vets Ltd
Cultural & Related,Open Spaces,Environmental,Transport Related Expenditure,Direct Transport Costs,Repair Materials,27/07/2016,187681,862.78,King Feeders Uk
Cultural & Related,Recreation & Sport,Community and Leisure ,Supplies & Services,"Equipment, Furniture & Materials",Purchase Equip + Materials,21/07/2016,183691,873.8,Broxap Limited (Stadia Sports )
Planning & Development,Economic Development,Estates and Economic Development ,Supplies & Services,Services,Professional Fees,28/07/2016,188497,875,Hall & Ensom Ltd
Environmental & Regulatory,Waste management,Environmental,Supplies & Services,"Equipment, Furniture & Materials",Purchase Equip + Materials,14/07/2016,187203,877.35,Steele Signs
Cultural & Related,Open Spaces,Community and Leisure ,Premises related Expenditure,Repairs Alterations & Maintenance of Buildings,Estates premises costs - AMP,21/07/2016,187711,885,Austin Foot Ecology
Housing Services,"Housing strategy, advice and enabling",Housing and Environmental Health ,Supplies & Services,Communications & Computing,Computer Software,14/07/2016,187079,902,Abritas Ltd
Central Services to the Public,Management & Support Services,Chief Executive's,Supplies & Services,Miscellaneous Expenses,Other Miscellaneous Costs,07/07/2016,186539,906,Office Update Ltd
Central Services to the Public,Management & Support Services,Legal & Democratic,Employees,Indirect Employee Expenses,Agency Staff - Waged Posts,21/07/2016,187716,920,Venn Group Ltd
Environmental & Regulatory,Regulatory Services,Housing and Environmental Health ,Supplies & Services,Grants and subscriptions,Capital Grants,07/07/2016,187194,1121.9,Andover Glass Works Ltd
Central Services,Corporate & Democratic Core,Corporate & Democratic,Supplies & Services,Communications & Computing,Land Line Telephone Charges,14/07/2016,187620,936.77,Invicta Lifeline Ltd
Central Services to the Public,Local Tax Collection,Revenues,Supplies & Services,"Printing, Stationery & General Office Expenses",Postage Costs,14/07/2016,187208,53.56,Royal Mail
Central Services to the Public,Local Tax Collection,Revenues,Supplies & Services,"Printing, Stationery & General Office Expenses",Postage Costs,14/07/2016,187208,586.04,Royal Mail
Housing Services,Housing Benefits ,Revenues,Supplies & Services,"Printing, Stationery & General Office Expenses",Postage Costs,14/07/2016,187208,149.87,Royal Mail
Central Services to the Public,Local Tax Collection,Revenues,Supplies & Services,"Printing, Stationery & General Office Expenses",Postage Costs,14/07/2016,187208,149.87,Royal Mail
Central Services to the Public,Management & Support Services,Estates and Economic Development ,Premises related Expenditure,Repairs Alterations & Maintenance of Buildings,Estates premises costs - AMP,07/07/2016,186910,958.78,Justfloors Ltd
Environmental & Regulatory,Regulatory Services,Estates and Economic Development ,Premises related Expenditure,Water Services,Water And Sewerage Charges,28/07/2016,188524,1155.29,Southern Water
Central Services to the Public,Management & Support Services,Finance,Supplies & Services,"Printing, Stationery & General Office Expenses",Postage Costs,07/07/2016,186934,980.26,Whistl Uk Ltd
Central Services to the Public,Management & Support Services,Environmental,Transport Related Expenditure,Direct Transport Costs,Oils,14/07/2016,187526,1005.75,Fuchs Lubricants (Uk) Plc
Housing Services,Housing Benefits ,Revenues,Employees,Indirect Employee Expenses,Temporary Staff,07/07/2016,186961,1029.5,Eden Brown Ltd
Central Services to the Public,Management & Support Services,Finance,Supplies & Services,"Printing, Stationery & General Office Expenses",Postage Costs,07/07/2016,187190,406.8,Royal Mail
Cultural & Related,Open Spaces,Community and Leisure ,Supplies & Services,"Equipment, Furniture & Materials",Purchase Equip + Materials,28/07/2016,188513,1068,Personal data - Data Protection Act 1998
"Highways, Roads & Transport",Highways and roads - maintenance,Plan Pol & Transport,Premises related Expenditure,Repairs Alterations & Maintenance of Buildings,Highways Repairs,14/07/2016,187226,1100,Personal data - Data Protection Act 1998
External Trading Accounts,Economic Development,Estates and Economic Development ,Premises related Expenditure,Energy Costs,Electricity,07/07/2016,186971,1109.73,Npower
Central Services to the Public,Elections,Legal & Democratic,Premises related Expenditure,Rents,Premises Hire,14/07/2016,185112,1332.6,Wernick Event Hire Ltd
Central Services to the Public,Elections,Legal & Democratic,Premises related Expenditure,Rents,Premises Hire,21/07/2016,187888,1350,Wernick Event Hire Ltd
Planning & Development,Community Development,Estates and Economic Development ,Supplies & Services,Miscellaneous Expenses,Photography Fees,28/07/2016,188519,1360.38,8by10 Digital Imaging
Environmental & Regulatory,Regulatory Services,Housing and Environmental Health ,Supplies & Services,Grants and subscriptions,Capital Grants,07/07/2016,187192,1380,Epw Construction
Central Services to the Public,Elections,Legal & Democratic,Premises related Expenditure,Rents,Premises Hire,14/07/2016,185370,1382.4,Wernick Event Hire Ltd
Housing Services,Housing Benefits ,Revenues,Employees,Indirect Employee Expenses,Temporary Staff,14/07/2016,187443,1152.75,Eden Brown Ltd
Environmental & Regulatory,Waste management,Environmental,Transport Related Expenditure,Contract Hire and Operating Leases,Vehicles-Hired\Leased,13/07/2016,187536,1185.44,Freeborn Winchester
Central Services to the Public,Elections,Legal & Democratic,Premises related Expenditure,Rents,Premises Hire,14/07/2016,185108,1485,Wernick Event Hire Ltd
Central Services to the Public,Management & Support Services,Legal & Democratic,Employees,Indirect Employee Expenses,Agency Staff - Waged Posts,14/07/2016,186389,1240,Venn Group Ltd
Central Services to the Public,Management & Support Services,Community and Leisure ,Supplies & Services,Services,Training Courses,20/07/2016,187881,1250,Planning For Real
Housing Services,Housing Benefits ,Revenues,Employees,Indirect Employee Expenses,Temporary Staff,21/07/2016,187713,1254.25,Eden Brown Ltd
Central Services to the Public,Elections,Legal & Democratic,Premises related Expenditure,Rents,Premises Hire,14/07/2016,185109,1521,Wernick Event Hire Ltd
Planning & Development,Planning Policy,Plan Pol & Transport,Supplies & Services,Grants & Subscriptions,Grants,07/07/2016,186966,1543.45,Hampshire County Council
Planning & Development,Planning Policy,Plan Pol & Transport,Supplies & Services,Grants & Subscriptions,Grants,14/07/2016,187241,1543.45,Hampshire County Council
Planning & Development,Planning Policy,Plan Pol & Transport,Supplies & Services,Grants & Subscriptions,Grants,21/07/2016,187593,1543.45,Hampshire County Council
Central Services to the Public,Management & Support Services,Finance,Supplies & Services,"Printing, Stationery & General Office Expenses",Postage Costs,21/07/2016,187904,1287.65,Whistl Uk Ltd
Cultural & Related,Recreation & Sport,Community and Leisure ,Premises related Expenditure,Grounds Maintenance Costs,Gm - Additional Works,21/07/2016,187591,778,Streetmaster (South Wales) Ltd
Cultural & Related,Open Spaces,Community and Leisure ,Supplies & Services,"Equipment, Furniture & Materials",Purchase Equip + Materials,21/07/2016,187591,513,Streetmaster (South Wales) Ltd
Central Services to the Public,Management & Support Services,IT,Supplies & Services,"Equipment, Furniture & Materials",Purchase Equipment For Hire,07/07/2016,186968,551.25,Xerox (Uk) Ltd
Central Services to the Public,Management & Support Services,IT,Supplies & Services,"Equipment, Furniture & Materials",Purchase Equip + Materials,07/07/2016,186968,741.45,Xerox (Uk) Ltd
Central Services to the Public,Management & Support Services,Legal & Democratic,Employees,Indirect Employee Expenses,Agency Staff - Waged Posts,14/07/2016,187440,1320,Venn Group Ltd
Central Services to the Public,Management & Support Services,Estates and Economic Development ,Premises related Expenditure,Energy Costs,Gas,28/07/2016,188485,1324.82,Total Gas & Power Ltd
Central Services to the Public,Elections,Legal & Democratic,Premises related Expenditure,Rents,Premises Hire,14/07/2016,185111,1599,Wernick Event Hire Ltd
Planning & Development,Development Control,Planning & Building,Supplies & Services,Services,Project Consultancy - Policy,21/07/2016,187636,1350,Personal data - Data Protection Act 1998
External Trading Accounts,Business Parks,Estates and Economic Development ,Supplies & Services,Services,Professional Fees,28/07/2016,188525,1365.23,Stratfords Commercial
Cultural & Related,Open Spaces,Environmental,Employees,Indirect Employee Expenses,Agency Staff - Waged Posts,28/07/2016,187702,1373.63,365 Supply Ltd
"Highways, Roads & Transport",Parking Services,Plan Pol & Transport,Supplies & Services,"Printing, Stationery & General Office Expenses",External Printing,21/07/2016,187876,1374.6,Paperwork (Uk) Ltd
Environmental & Regulatory,Waste management,Environmental,Employees,Indirect Employee Expenses,Agency Staff - Waged Posts,14/07/2016,187460,1377.68,365 Supply Ltd
Cultural & Related,Culture & Heritage,Community and Leisure ,Premises related Expenditure,Energy Costs,Electricity,21/07/2016,187932,1135.16,Sparsholt College Hampshire
Cultural & Related,Culture & Heritage,Community and Leisure ,Premises related Expenditure,Energy Costs,Gas,21/07/2016,187932,49.23,Sparsholt College Hampshire
Cultural & Related,Culture & Heritage,Community and Leisure ,Premises related Expenditure,Water Services,Water And Sewerage Charges,21/07/2016,187932,254.34,Sparsholt College Hampshire
Central Services to the Public,Management & Support Services,Estates and Economic Development ,Third Party Payments,Private contractors,Main Contractor Costs,21/07/2016,187889,1500,Building Surveying & Project Manangement Ltd
Central Services,Corporate & Democratic Core,Corporate & Democratic,Supplies & Services,"Equipment, Furniture & Materials",Purchase Equip + Materials,28/07/2016,188789,1506,Shaw & Sons Ltd
Planning & Development,Development Control,Planning & Building,Employees,Indirect Employee Expenses,Temporary Staff,21/07/2016,188258,1507,Oyster Partnership
Central Services to the Public,Local Tax Collection,Revenues,Supplies & Services,Miscellaneous Expenses,All Pay Fees,07/07/2016,187085,1526.33,Allpay Limited
Planning & Development,Development Control,Planning & Building,Supplies & Services,"Printing, Stationery & General Office Expenses",Stationery,14/07/2016,186940,1304.94,Bannergroup Ltd
Planning & Development,Development Control,Planning & Building,Supplies & Services,"Printing, Stationery & General Office Expenses",Print Consumables,14/07/2016,186940,198.53,Bannergroup Ltd
Planning & Development,Development Control,Planning & Building,Supplies & Services,Miscellaneous Expenses,Health And Safety,14/07/2016,186940,51.52,Bannergroup Ltd
Planning & Development,Development Control,Planning & Building,Employees,Indirect Employee Expenses,Temporary Staff,21/07/2016,188229,1562,Oyster Partnership
Planning & Development,Development Control,Planning & Building,Employees,Indirect Employee Expenses,Temporary Staff,21/07/2016,188257,1650,Oyster Partnership
Environmental & Regulatory,Regulatory Services,Housing and Environmental Health ,Supplies & Services,Miscellaneous Expenses,Kennel fees,14/07/2016,187540,1652.4,Newbury Lodge Kennels
Central Services to the Public,Management & Support Services,Estates and Economic Development ,Third Party Payments,Other Establishments,Contract Catering,28/07/2016,187937,1667.46,Edwards And Ward Ltd
Planning & Development,Economic Development,Estates and Economic Development ,Supplies & Services,Grants & Subscriptions,Grants,07/07/2016,186392,2056.48,New Forest District Council
"Highways, Roads & Transport",Public Transport,Plan Pol & Transport,Third Party Payments,Transport Operators in Respect of Concessionary Fares,Voluntary Orgs Reimbursement,14/07/2016,187437,2090,Andover Neighbourcare
Planning & Development,Development Control,Planning & Building,Employees,Indirect Employee Expenses,Temporary Staff,21/07/2016,188228,1793,Oyster Partnership
Planning & Development,Development Control,Planning & Building,Employees,Indirect Employee Expenses,Temporary Staff,21/07/2016,188259,1848,Oyster Partnership
Central Services to the Public,Management & Support Services,Finance,Supplies & Services,Services,Insurance ,28/07/2016,188778,2272.73,Fareham Borough Council
"Highways, Roads & Transport",Public Transport,Plan Pol & Transport,Third Party Payments,Transport Operators in Respect of Concessionary Fares,Voluntary Orgs Reimbursement,07/07/2016,186661,2315.8,Andover Neighbourcare
Central Services to the Public,Management & Support Services,Estates and Economic Development ,Third Party Payments,Private contractors,Main Contractor Costs,28/07/2016,188972,1950,Wake'S Decorating Ltd
Planning & Development,Development Control,Planning & Building,Employees,Indirect Employee Expenses,Temporary Staff,28/07/2016,188528,2024,Oyster Partnership
Cultural & Related,Culture & Heritage,Estates and Economic Development ,Premises related Expenditure,Repairs Alterations & Maintenance of Buildings,Planned Maintenance - Non Est,07/07/2016,186912,280,Aquacare
Central Services to the Public,Management & Support Services,Estates and Economic Development ,Premises related Expenditure,Repairs Alterations & Maintenance of Buildings,Planned Maintenance - Non Est,07/07/2016,186912,280,Aquacare
Cultural & Related,Recreation & Sport,Community and Leisure ,Premises related Expenditure,Repairs Alterations & Maintenance of Buildings,Planned Maintenance - Non Est,07/07/2016,186912,280,Aquacare
Cultural & Related,Recreation & Sport,Community and Leisure ,Premises related Expenditure,Repairs Alterations & Maintenance of Buildings,Planned Maintenance - Non Est,07/07/2016,186912,280,Aquacare
Cultural & Related,Recreation & Sport,Community and Leisure ,Premises related Expenditure,Repairs Alterations & Maintenance of Buildings,Planned Maintenance - Non Est,07/07/2016,186912,280,Aquacare
Cultural & Related,Recreation & Sport,Community and Leisure ,Premises related Expenditure,Repairs Alterations & Maintenance of Buildings,Planned Maintenance - Non Est,07/07/2016,186912,280,Aquacare
Cultural & Related,Recreation & Sport,Community and Leisure ,Premises related Expenditure,Repairs Alterations & Maintenance of Buildings,Planned Maintenance - Non Est,07/07/2016,186912,220,Aquacare
Cultural & Related,Culture & Heritage,Community and Leisure ,Premises related Expenditure,Repairs Alterations & Maintenance of Buildings,Planned Maintenance - Non Est,07/07/2016,186912,220,Aquacare
Cultural & Related,Open Spaces,Community and Leisure ,Supplies & Services,"Equipment, Furniture & Materials",Purchase Equip + Materials,28/07/2016,188505,2148,Streetmaster (South Wales) Ltd
Central Services to the Public,Management & Support Services,Environmental,Transport Related Expenditure,Direct Transport Costs,Diesel,07/07/2016,186924,1944.58,Wp Group Limited
Central Services to the Public,Management & Support Services,Environmental,Transport Related Expenditure,Direct Transport Costs,Red Derv,07/07/2016,186924,293.51,Wp Group Limited
Central Services to the Public,Management & Support Services,IT,Supplies & Services,Communications & Computing,Hardware Maintenance,21/07/2016,187712,2279.99,Xerox (Uk) Ltd
Environmental & Regulatory,Waste management,Environmental,Employees,Indirect Employee Expenses,Agency Staff - Waged Posts,14/07/2016,187458,2285.91,365 Supply Ltd
Central Services to the Public,Management & Support Services,Chief Executive's,Supplies & Services,Services,Project Consultancy - Policy,21/07/2016,187942,2751.1,Moles Consultancy
Cultural & Related,Recreation & Sport,Community and Leisure ,Supplies & Services,"Equipment, Furniture & Materials",Purchase Equip + Materials,21/07/2016,183930,2366,Broxap Limited (Stadia Sports )
Cultural & Related,Culture & Heritage,Community and Leisure ,Supplies & Services,"Printing, Stationery & General Office Expenses",Postage Costs,07/07/2016,186891,2399.89,Document Despatch Ltd
Environmental & Regulatory,Regulatory Services,Housing and Environmental Health ,Supplies & Services,Grants and subscriptions,Capital Grants,06/07/2016,187046,2905.54,Aster Property Ltd
Environmental & Regulatory,Regulatory Services,Housing and Environmental Health ,Supplies & Services,Grants and subscriptions,Capital Grants,06/07/2016,187045,2915.65,Aster Property Ltd
Central Services to the Public,Management & Support Services,Environmental,Transport Related Expenditure,Direct Transport Costs,Diesel,14/07/2016,187517,2434.05,Wp Group Limited
Planning & Development,Economic Development,Estates and Economic Development ,Supplies & Services,Grants & Subscriptions,Grants,07/07/2016,187221,2443.8,Heartflood Ltd
Central Services to the Public,Management & Support Services,IT,Supplies & Services,Communications & Computing,Software Maintenance,14/07/2016,187439,2487.51,Vodafone Cable & Wireless Uk
Central Services to the Public,Management & Support Services,Environmental,Transport Related Expenditure,Direct Transport Costs,Diesel,28/07/2016,188547,2494.93,Wp Group Limited
Environmental & Regulatory,Waste management,Environmental,Employees,Indirect Employee Expenses,Agency Staff - Waged Posts,14/07/2016,187462,2594.55,365 Supply Ltd
Planning & Development,Development Control,Planning & Building,Supplies & Services,Miscellaneous Expenses,Planning Appeal Costs,14/07/2016,187585,2675,Parkwood Consultancy Services Ltd
Environmental & Regulatory,Regulatory Services,Housing and Environmental Health ,Supplies & Services,Grants and subscriptions,Capital Grants,14/07/2016,187725,3229.14,J D Codd Ltd
Central Services to the Public,Management & Support Services,Finance,Transport Related Expenditure,Contract Hire and Operating Leases,Officer lease cars,28/07/2016,188283,3308.08,Arnold Clark Finance Ltd
"Highways, Roads & Transport",Highways and roads - maintenance,Plan Pol & Transport,Transport Related Expenditure,Contract Hire and Operating Leases,Officer lease cars,13/07/2016,187084,3395.71,Lookers Leasing Ltd
Environmental & Regulatory,Street Cleansing (not chargeable to Highways),Environmental,Supplies & Services,Miscellaneous Expenses,Waste Collection,21/07/2016,187722,3417.66,Hampshire County Council
Environmental & Regulatory,Regulatory Services,Housing and Environmental Health ,Supplies & Services,Grants and subscriptions,Capital Grants,27/07/2016,188804,3436.1,Aster Group
Environmental & Regulatory,Street Cleansing (not chargeable to Highways),Environmental,Supplies & Services,Miscellaneous Expenses,Abandoned Vehicles,14/07/2016,187708,2972,Hampshire County Council
"Highways, Roads & Transport",Parking Services,Plan Pol & Transport,Premises related Expenditure,Repairs Alterations & Maintenance of Buildings,Car Park General Repairs,14/07/2016,187455,2984.12,Irvine Grenson Ltd
Central Services to the Public,Management & Support Services,Environmental,Transport Related Expenditure,Direct Transport Costs,Diesel,21/07/2016,187717,2695.2,Wp Group Limited
Central Services to the Public,Management & Support Services,Environmental,Transport Related Expenditure,Direct Transport Costs,Red Derv,21/07/2016,187717,345.3,Wp Group Limited
Planning & Development,Building Control,Planning & Building,Premises related Expenditure,Repairs Alterations & Maintenance of Buildings,s106 Developer contributions,28/07/2016,188941,3780.33,Stockbridge Parish Council
Planning & Development,Planning Policy,Plan Pol & Transport,Supplies & Services,Grants & Subscriptions,Contributions,21/07/2016,187707,3782,Southampton City Council
"Highways, Roads & Transport",Highways and roads - maintenance,Plan Pol & Transport,Premises related Expenditure,Repairs Alterations & Maintenance of Buildings,Highways Repairs,14/07/2016,187454,3161.91,Irvine Grenson Ltd
Planning & Development,Development Control,Planning & Building,Supplies & Services,Services,Project Consultancy - Policy,27/07/2016,188527,3184.2,Hampshire County Council
Planning & Development,Community Development,Estates and Economic Development ,Supplies & Services,"Equipment, Furniture & Materials",Equipment Hire,28/07/2016,188520,3907.5,Marston Robing Limited
Cultural & Related,Culture & Heritage,Community and Leisure ,Supplies & Services,Services,Professional Fees,28/07/2016,188255,4000,Stopgap Dance Company
Cultural & Related,Culture & Heritage,Community and Leisure ,Supplies & Services,Services,Project Consultancy - Policy,28/07/2016,187603,4000,Personal data - Data Protection Act 1998
Cultural & Related,Culture & Heritage,Community and Leisure ,Supplies & Services,Communications & Computing,Computer Software,14/07/2016,187577,3346.94,Tickets.Com Ltd
Central Services to the Public,Management & Support Services,Revenues,Supplies & Services,Communications & Computing,Computer Software,28/07/2016,188517,3512.6,Northgate Public Services Uk Ltd
Central Services to the Public,Management & Support Services,Environmental,Transport Related Expenditure,Direct Transport Costs,Diesel,07/07/2016,186925,3535.6,Wp Group Limited
Central Services to the Public,Management & Support Services,HR Services,Supplies & Services,Services,External Training Consultants,14/07/2016,187592,3600,Cipd Enterprises Ltd
"Highways, Roads & Transport",Parking Services,Plan Pol & Transport,Premises related Expenditure,Repairs Alterations & Maintenance of Buildings,Car Park General Repairs,28/07/2016,188279,3634.38,Coupe Line
Environmental & Regulatory,Regulatory Services,Housing and Environmental Health ,Supplies & Services,Grants and subscriptions,Capital Grants,07/07/2016,187191,4426.89,S & J Building Services (Uk) Ltd
Environmental & Regulatory,Regulatory Services,Housing and Environmental Health ,Supplies & Services,Grants and subscriptions,Capital Grants,14/07/2016,187668,4490,Bentley Mobility Services
Central Services to the Public,Management & Support Services,Environmental,Transport Related Expenditure,Direct Transport Costs,Diesel,14/07/2016,187518,3876.45,Wp Group Limited
Environmental & Regulatory,Regulatory Services,Housing and Environmental Health ,Supplies & Services,Grants and subscriptions,Capital Grants,14/07/2016,187726,4688.4,Prism Medical Uk
Cultural & Related,Open Spaces,Environmental,Supplies & Services,Services,Professional Fees,14/07/2016,187457,3910.65,The Play Inspection Company Ltd
External Trading Accounts,Business Parks,Estates and Economic Development ,Supplies & Services,Services,Professional Fees,28/07/2016,188933,4000,Denton Ukmea Llp
Central Services to the Public,Management & Support Services,IT,Transport Related Expenditure,Contract Hire and Operating Leases,Officer lease cars,28/07/2016,188282,4922.14,Arnold Clark Finance Ltd
Central Services to the Public,Management & Support Services,Finance,Supplies & Services,"Printing, Stationery & General Office Expenses",Postage Costs,14/07/2016,187445,4977.68,Pitney Bowes Limited
Central Services to the Public,Management & Support Services,Plan Pol & Transport,Premises related Expenditure,Repairs Alterations & Maintenance of Buildings,General Repairs,07/07/2016,186660,4246.54,Colas Ltd
Central Services to the Public,Management & Support Services,IT,Supplies & Services,Communications & Computing,Software Maintenance,14/07/2016,187597,5096,Waterford Technologies
Central Services to the Public,Management & Support Services,Environmental,Transport Related Expenditure,Direct Transport Costs,Diesel,07/07/2016,186411,4011.79,Wp Group Limited
Central Services to the Public,Management & Support Services,Environmental,Transport Related Expenditure,Direct Transport Costs,Red Derv,07/07/2016,186411,394.24,Wp Group Limited
Planning & Development,Community Development,Community and Leisure ,Supplies & Services,Grants & Subscriptions,Grants,27/07/2016,188803,5232,Andover Mind
Central Services to the Public,Management & Support Services,Environmental,Transport Related Expenditure,Direct Transport Costs,Diesel,21/07/2016,187680,4014.71,Wp Group Limited
Central Services to the Public,Management & Support Services,Environmental,Transport Related Expenditure,Direct Transport Costs,Red Derv,21/07/2016,187680,445.38,Wp Group Limited
Cultural & Related,Recreation & Sport,Community and Leisure ,Supplies & Services,Services,Professional Fees,14/07/2016,187492,4792.9,Personal data - Data Protection Act 1998
"Highways, Roads & Transport",Parking Services,Plan Pol & Transport,Supplies & Services,Services,Professional Fees,14/07/2016,187090,5105.21,Keyline Chartered Security Ltd
Central Services to the Public,Local Land Charges,Legal & Democratic,Supplies & Services,Miscellaneous Expenses,Land Charges Fees,14/07/2016,187679,6129.5,Hampshire County Council
Central Services to the Public,Management & Support Services,Estates and Economic Development ,Third Party Payments,Private contractors,Main Contractor Costs,28/07/2016,188500,5170,Spheretech Ltd
"Highways, Roads & Transport",Parking Services,Plan Pol & Transport,Supplies & Services,Services,Professional Fees,07/07/2016,185459,5213.64,Keyline Chartered Security Ltd
Cultural & Related,Open Spaces,Environmental,Supplies & Services,Communications & Computing,Computer Software,28/07/2016,187939,5333,Public Sector Software Ltd
"Highways, Roads & Transport",Parking Services,Plan Pol & Transport,Supplies & Services,Communications & Computing,Computer Software,14/07/2016,187225,6048,Cale Briparc Ltd
Environmental & Regulatory,Waste management,Environmental,Supplies & Services,Miscellaneous Expenses,Recycling Bank Emptying,28/07/2016,188580,6283.28,Fcc Recycling (Uk) Ltd
Central Services to the Public,Management & Support Services,Chief Executive's,Supplies & Services,Services,Project Consultancy - Policy,21/07/2016,188261,6324.25,Place Studio
Environmental & Regulatory,Community Development,Community and Leisure ,Supplies & Services,Miscellaneous Expenses,Promotions / Special Events,21/07/2016,187884,8000,Romsey Community School
Environmental & Regulatory,Waste management,Environmental,Supplies & Services,Miscellaneous Expenses,Recycling Bank Emptying,07/07/2016,186895,6781.36,Fcc Recycling (Uk) Ltd
Environmental & Regulatory,Community Development,Community and Leisure ,Transport Related Expenditure,Direct Transport Costs,Tyres,14/07/2016,187534,84.69,Ats Euromaster Limited
Cultural & Related,Open Spaces,Environmental,Transport Related Expenditure,Direct Transport Costs,Tyres,14/07/2016,187534,486.43,Ats Euromaster Limited
Environmental & Regulatory,Waste management,Environmental,Transport Related Expenditure,Direct Transport Costs,Tyres,14/07/2016,187534,4843.49,Ats Euromaster Limited
Environmental & Regulatory,Waste management,Environmental,Transport Related Expenditure,Direct Transport Costs,Tyres,14/07/2016,187534,1055.86,Ats Euromaster Limited
Central Services to the Public,Management & Support Services,Environmental,Transport Related Expenditure,Direct Transport Costs,Repair Materials,14/07/2016,187534,678.84,Ats Euromaster Limited
Environmental & Regulatory,Community Development,Community and Leisure ,Third Party Payments,Other Local Authorities,Hampshire C C -Agency Service,21/07/2016,187885,9000,Romsey Community School
External Trading Accounts,Business Parks,Estates and Economic Development ,Premises related Expenditure,Repairs Alterations & Maintenance of Buildings,Planned Maintenance - Non Est,07/07/2016,187070,505.35,Clearwater 2010 Ltd
External Trading Accounts,Business Parks,Estates and Economic Development ,Premises related Expenditure,Repairs Alterations & Maintenance of Buildings,Planned Maintenance - Non Est,07/07/2016,187070,1010.7,Clearwater 2010 Ltd
Central Services to the Public,Management & Support Services,Estates and Economic Development ,Premises related Expenditure,Repairs Alterations & Maintenance of Buildings,Planned Maintenance - Non Est,07/07/2016,187070,505.35,Clearwater 2010 Ltd
Central Services to the Public,Management & Support Services,Estates and Economic Development ,Premises related Expenditure,Repairs Alterations & Maintenance of Buildings,Planned Maintenance - Non Est,07/07/2016,187070,505.35,Clearwater 2010 Ltd
Central Services to the Public,Management & Support Services,Estates and Economic Development ,Premises related Expenditure,Repairs Alterations & Maintenance of Buildings,Planned Maintenance - Non Est,07/07/2016,187070,505.35,Clearwater 2010 Ltd
Cultural & Related,Recreation & Sport,Community and Leisure ,Premises related Expenditure,Repairs Alterations & Maintenance of Buildings,Planned Maintenance - Non Est,07/07/2016,187070,3369.2,Clearwater 2010 Ltd
Cultural & Related,Recreation & Sport,Community and Leisure ,Premises related Expenditure,Repairs Alterations & Maintenance of Buildings,Planned Maintenance - Non Est,07/07/2016,187070,505.35,Clearwater 2010 Ltd
Cultural & Related,Culture & Heritage,Community and Leisure ,Premises related Expenditure,Repairs Alterations & Maintenance of Buildings,Planned Maintenance - Non Est,07/07/2016,187070,1010.65,Clearwater 2010 Ltd
Environmental & Regulatory,Regulatory Services,Housing and Environmental Health ,Supplies & Services,Grants and subscriptions,Capital Grants,07/07/2016,187236,9585.75,Nhp (Romsey) Ltd
Environmental & Regulatory,Waste management,Environmental,Supplies & Services,"Equipment, Furniture & Materials",Purchase Equip + Materials,07/07/2016,186662,8556.8,Mgb Plastics Ltd
Environmental & Regulatory,Waste management,Environmental,Supplies & Services,"Equipment, Furniture & Materials",Purchase Equip + Materials,14/07/2016,187682,8612.8,Mgb Plastics Ltd
Cultural & Related,Open Spaces,Community and Leisure ,Supplies & Services,"Equipment, Furniture & Materials",Purchase Equip + Materials,14/07/2016,186403,9329,Choice Plants
"Highways, Roads & Transport",Parking Services,Plan Pol & Transport,Premises related Expenditure,Repairs Alterations & Maintenance of Buildings,Car Park General Repairs,14/07/2016,187632,11335.91,Irvine Grenson Ltd
Central Services to the Public,Management & Support Services,Estates and Economic Development ,Third Party Payments,Private contractors,Main Contractor Costs,28/07/2016,187466,11589,Temple Lifts Ltd
Cultural & Related,Recreation & Sport,Community and Leisure ,Supplies & Services,Grants and subscriptions,Capital Grants,14/07/2016,187667,15000,Nether Wallop New Village Hall Trust
Central Services to the Public,Management & Support Services,IT,Supplies & Services,Communications & Computing,Computer Hardware,14/07/2016,187214,13888.79,Vodafone Limited
Central Services to the Public,Management & Support Services,Plan Pol & Transport,Premises related Expenditure,Repairs Alterations & Maintenance of Buildings,General Repairs,07/07/2016,186665,14591.8,Rocon Contractors Ltd
Central Services,Corporate & Democratic Core,Corporate & Democratic,Supplies & Services,Communications & Computing,Computer Hardware,14/07/2016,187685,24869,Advanced Business Solutions
Central Services to the Public,Management & Support Services,Estates and Economic Development ,Third Party Payments,Private contractors,Main Contractor Costs,28/07/2016,187465,27135,Temple Lifts Ltd
Central Services to the Public,Management & Support Services,Environmental,Transport Related Expenditure,Direct Transport Costs,Vehicles and Plant,07/07/2016,187232,56595,Adams Morey Ltd
Central Services to the Public,Management & Support Services,Plan Pol & Transport,Premises related Expenditure,Repairs Alterations & Maintenance of Buildings,General Repairs,07/07/2016,186664,68587.22,Rocon Contractors Ltd
